bitfinex/quotes_SOLUSD_20230101
["timestamp","ask_amount","ask_price","bid_price","bid_amount"]
[1672565714720,98.60173676,9.8096,9.803,23.9091]
[1672565714926,76.54,9.8095,9.803,23.9091]
[1672565715120,198.5559649,9.8095,9.803,23.9091]
[1672565715452,122.0159649,9.8094,9.803,23.9091]
[1672565715666,76.54,9.8093,9.803,23.9091]
[1672565715976,139.95422814,9.8093,9.803,23.9091]
[1672565716290,95.21500351,9.8092,9.7959,76.65]
[1672565716503,0.10205169,9.7959,9.7934,306.7]
[1672565716827,0.10205169,9.7959,9.7936,306.7]
[1672565717024,0.10205169,9.7959,9.7938,306.7]
[1672565719428,0.10205169,9.7959,9.7939,40.0]
[1672565719646,0.10205169,9.7959,9.794,306.7]
[1672565720184,0.10205169,9.7959,9.7942,306.7]
[1672565720707,0.10205169,9.7959,9.7944,306.7]
[1672565721118,0.10205169,9.7959,9.7946,306.7]
[1672565721552,0.10205169,9.7959,9.7946,306.58451929]
[1672565721762,0.10205169,9.7959,9.7948,306.58451929]
[1672565722901,0.10205169,9.7959,9.7949,23.6266]
[1672565723552,0.10205169,9.7959,9.7948,306.58451929]
[1672565724069,0.10205169,9.7959,9.7949,23.6266]
[1672565724699,0.10205169,9.7959,9.7948,306.58451929]
[1672565725439,0.10205169,9.7959,9.7949,23.4793]
[1672565726061,0.10205169,9.7959,9.7948,306.58451929]
[1672565726804,0.10205169,9.7959,9.7949,23.4793]
[1672565727211,0.10205169,9.7959,9.7948,306.58451929]
[1672565727942,0.10205169,9.7959,9.7949,23.4793]
[1672565728470,0.10205169,9.7959,9.795,306.58451929]
[1672565729327,0.10205169,9.7959,9.7951,22.6991]
[1672565731416,81.09422814,9.7958,9.7951,22.6991]
[1672565731628,81.09422814,9.7958,9.7884,306.7]
[1672565731834,81.09422814,9.7958,9.7883,116.71]
[1672565731835,81.09422814,9.7958,9.7886,306.7]
[1672565732048,81.09422814,9.7958,9.7883,40.0]
[1672565732049,81.09422814,9.7958,9.7888,306.7]
[1672565732889,81.09422814,9.7958,9.7885,306.7]
[1672565733103,81.09422814,9.7958,9.7889,306.7]
[1672565733319,40.0,9.7957,9.7885,24.0054]
[1672565733528,81.09422814,9.7958,9.7885,24.0054]
[1672565733750,0.10205169,9.7959,9.788,306.7]
[1672565733751,81.09422814,9.7956,9.788,306.7]
[1672565734370,81.09422814,9.7956,9.7881,24.0054]
[1672565734992,81.09422814,9.7956,9.788,306.7]
[1672565735418,81.09422814,9.7956,9.7881,40.0]
[1672565735623,81.09422814,9.7956,9.7883,40.0]
[1672565735842,81.09422814,9.7956,9.7885,306.7]
[1672565736050,81.09422814,9.7956,9.7887,346.7]
[1672565736266,81.09422814,9.7956,9.789,40.0]
[1672565736464,81.09422814,9.7956,9.7892,306.7]
[1672565736676,81.09422814,9.7956,9.7894,306.7]
[1672565736982,81.09422814,9.7956,9.7897,40.0]
[1672565737210,81.09422814,9.7956,9.79,40.0]
[1672565737423,0.10205169,9.7959,9.7903,40.0]
[1672565737620,0.10205169,9.7959,9.7904,306.7]
[1672565737827,0.10205169,9.7959,9.7905,40.0]
[1672565738244,0.10205169,9.7959,9.7907,346.7]
[1672565738585,0.10205169,9.7959,9.791,40.0]
[1672565739525,0.10205169,9.7959,9.7913,40.0]
[1672565739951,0.10205169,9.7959,9.7915,40.0]
[1672565740598,0.10205169,9.7959,9.7918,40.0]
[1672565740784,0.10205169,9.7959,9.792,306.7]
[1672565741206,0.10205169,9.7959,9.7921,40.0]
[1672565741648,0.10205169,9.7959,9.7924,40.0]
[1672565741855,0.10205169,9.7959,9.7927,40.0]
[1672565742063,0.10205169,9.7959,9.7929,40.0]
[1672565742482,0.10205169,9.7959,9.7931,346.7]
[1672565742690,0.10205169,9.7959,9.7932,40.0]
[1672565743218,0.10205169,9.7959,9.7935,40.0]
[1672565743640,0.10205169,9.7959,9.7938,40.0]
[1672565744064,0.10205169,9.7959,9.7941,40.0]
[1672565744578,0.00205169,9.7959,9.7944,40.0]
[1672565745321,0.00205169,9.7959,9.7947,40.0]
[1672565745743,0.00205169,9.7959,9.7948,23.657]
[1672565745954,0.00205169,9.7959,9.795,40.0]
[1672565746479,0.00205169,9.7959,9.7951,306.7]
[1672565747102,0.00205169,9.7959,9.7952,23.657]
[1672565747723,0.00205169,9.7959,9.7951,306.7]
[1672565748366,0.00205169,9.7959,9.7952,22.777]
[1672565749013,0.00205169,9.7959,9.7951,306.7]
[1672565749526,0.00205169,9.7959,9.7952,40.0]
[1672565749718,0.00205169,9.7959,9.7953,306.7]
[1672565749934,0.00205169,9.7959,9.7954,40.0]
[1672565750985,0.00205169,9.7959,9.7955,24.283]
[1672565751821,0.00205169,9.7959,9.7954,40.0]
[1672565752571,0.00205169,9.7959,9.7955,24.283]
[1672565757305,0.00205169,9.7959,9.7954,40.0]
[1672565758036,0.00205169,9.7959,9.7955,22.7224]
[1672565758652,0.00205169,9.7959,9.7954,40.0]
[1672565759404,0.00205169,9.7959,9.7955,22.7224]
[1672565760038,0.00205169,9.7959,9.7954,40.0]
[1672565760552,0.00205169,9.7959,9.7955,22.7224]
[1672565783484,0.00205169,9.7959,9.795,117.0729]
[1672565784132,0.00205169,9.7959,9.7895,40.0]
[1672565784762,0.00205169,9.7959,9.7925,24.7363]
[1672565785079,83.00089481,9.7958,9.7925,24.7363]
[1672565785281,83.00089481,9.7958,9.79,306.7]
[1672565788654,62.6688372,9.7957,9.79,306.7]
[1672565789066,83.00089481,9.7956,9.79,306.7]
[1672565789804,62.6688372,9.7955,9.79,306.7]
[1672565790229,83.00089481,9.7954,9.79,306.7]
[1672565791473,62.6688372,9.7953,9.79,306.7]
[1672565791894,86.38089481,9.7952,9.79,306.7]
[1672565792520,86.38089481,9.7952,9.7901,40.0]
[1672565794632,62.66511053,9.7951,9.7901,40.0]
[1672565795054,86.38089481,9.795,9.7901,40.0]
[1672565796518,62.66511053,9.7949,9.7901,40.0]
[1672565796954,86.38089481,9.7948,9.7901,40.0]
[1672565797373,149.04600534,9.7948,9.7901,40.0]
[1672565797789,86.38089481,9.7947,9.7901,40.0]
[1672565798111,62.66511053,9.7946,9.7901,40.0]
[1672565798303,62.66511053,9.7946,9.79,306.7]
[1672565798510,86.38089481,9.7945,9.79,306.7]
[1672565801156,86.38089481,9.7945,9.7901,40.0]
[1672565810928,0.00205169,9.7959,9.7901,40.0]
[1672565811352,89.49569481,9.7958,9.7901,40.0]
[1672565813466,62.66511053,9.7957,9.79,306.7]
[1672565813675,62.66511053,9.7957,9.7677,145.59172631]
[1672565813676,153.01139289,9.7948,9.7854,306.7]
[1672565813890,20.0,9.7956,9.7861,306.7]
[1672565813891,96.66,9.7947,9.7861,306.7]
[1672565814083,222.11086204,9.7947,9.7861,306.7]
[1672565814291,85.3517772,9.7946,9.7861,306.7]
[1672565814501,76.66,9.7945,9.7861,306.7]
[1672565814828,85.3517772,9.7944,9.7826,346.7]
[1672565815149,142.0117772,9.7943,9.7829,40.0]
[1672565815338,20.0,9.7942,9.7832,40.0]
[1672565815551,76.66,9.7941,9.7835,40.0]
[1672565815862,20.0,9.794,9.7838,40.0]
[1672565816081,76.66,9.7939,9.784,306.7]
[1672565816318,20.0,9.7938,9.7843,40.0]
[1672565816616,100.09908484,9.7938,9.7845,306.7]
[1672565816832,65.3517772,9.7937,9.7847,306.7]
[1672565817024,20.0,9.7936,9.7849,306.7]
[1672565817231,100.09908484,9.7936,9.7851,306.7]
[1672565817453,145.45086204,9.7935,9.7851,306.7]
[1672565817663,20.0,9.7934,9.7851,306.7]
[1672565817875,165.45086204,9.7934,9.7851,306.7]
[1672565818084,145.45086204,9.7933,9.7851,306.7]
[1672565818290,20.0,9.7932,9.7847,306.7]
[1672565818495,20.0,9.7932,9.7846,76.73]
[1672565818496,165.45086204,9.7932,9.7849,306.7]
[1672565818702,145.45086204,9.7931,9.785,76.73]
[1672565818912,20.0,9.793,9.7844,76.74]
[1672565819123,165.45086204,9.793,9.7844,76.74]
[1672565819449,165.45086204,9.793,9.7845,24.8901]
[1672565819450,145.45086204,9.7929,9.7845,24.8901]
[1672565819667,20.0,9.7928,9.7846,76.73]
[1672565819866,165.45086204,9.7928,9.7846,76.73]
[1672565820193,145.45086204,9.7927,9.7844,76.74]
[1672565820508,165.45086204,9.7926,9.7844,101.6301]
[1672565820713,165.45086204,9.7926,9.7844,76.74]
[1672565820927,65.3517772,9.7925,9.7844,76.74]
[1672565821243,20.0,9.7924,9.7844,76.74]
[1672565821437,20.0,9.7924,9.7845,24.8901]
[1672565821773,65.3517772,9.7923,9.7845,24.8901]
[1672565821973,20.0,9.7924,9.7843,40.0]
[1672565821974,20.0,9.7922,9.7843,40.0]
[1672565822389,65.3517772,9.7921,9.7843,40.0]
[1672565822607,65.3517772,9.7921,9.7844,22.717]
[1672565823340,65.3517772,9.7921,9.7843,40.0]
[1672565823977,65.3517772,9.7921,9.7844,22.717]
[1672565824589,65.3517772,9.7921,9.7846,40.0]
[1672565825022,65.3517772,9.7921,9.7847,22.717]
[1672565832480,80.09908484,9.792,9.7847,22.717]
[1672565832894,65.3517772,9.7919,9.7847,22.717]
[1672565833225,80.09908484,9.7918,9.7847,22.717]
[1672565833551,65.3517772,9.7917,9.7847,22.717]
[1672565833963,80.09908484,9.7916,9.7847,22.717]
[1672565834355,65.3517772,9.7915,9.7847,22.717]
[1672565835320,80.09908484,9.7916,9.7847,22.717]
[1672565835537,65.3517772,9.7915,9.7847,22.717]
[1672565836696,80.09908484,9.7914,9.7847,22.717]
[1672565837118,65.3517772,9.7913,9.7847,22.717]
[1672565841319,80.09908484,9.7914,9.7847,22.717]
[1672565842275,65.31295053,9.7913,9.7847,22.717]
[1672565848048,20.0,9.7924,9.7847,22.717]
[1672565848259,20.0,9.7933,9.7847,22.717]
[1672565848450,65.31295053,9.7924,9.7847,22.717]
[1672565848661,20.0,9.7923,9.7847,22.717]
[1672565850163,20.0,9.7923,9.7859,22.6385]
[1672565857405,85.31295053,9.7923,9.7859,22.6385]
[1672565858456,20.0,9.7923,9.7859,22.6385]
[1672565858662,80.09908484,9.7922,9.7859,22.6385]
[1672565858895,80.09908484,9.7922,9.7861,306.7]
[1672565859104,80.09908484,9.7922,9.7862,40.0]
[1672565859326,80.09908484,9.7922,9.7864,40.0]
[1672565859538,20.0,9.7934,9.7864,40.0]
[1672565859736,20.0,9.7934,9.7867,40.0]
[1672565860069,20.0,9.7955,9.787,40.0]
[1672565860377,20.0,9.7955,9.7873,40.0]
[1672565862479,20.0,9.7955,9.7876,40.0]
[1672565862902,20.0,9.7955,9.7879,40.0]
[1672565863327,20.0,9.7955,9.7881,40.0]
[1672565866979,76.64,9.7972,9.7881,40.0]
[1672565867209,76.62,9.799,9.7884,40.0]
[1672565867418,76.59,9.8034,9.7887,40.0]
[1672565867608,307.51966263,9.8056,9.7887,40.0]
[1672565867609,56.61165627,9.7998,9.789,40.0]
[1672565867816,56.61165627,9.7998,9.7892,306.7]
[1672565867817,76.62,9.7997,9.7892,306.7]
[1672565868026,76.62,9.7997,9.7891,193.7389]
[1672565868027,76.62,9.7997,9.7894,346.7]
[1672565868229,133.23165627,9.7997,9.7897,40.0]
[1672565868449,133.23165627,9.7997,9.7899,306.7]
[1672565868663,133.23165627,9.7997,9.7901,306.7]
[1672565868881,133.23165627,9.7997,9.7903,346.7]
[1672565869074,133.23165627,9.7997,9.7906,40.0]
[1672565869280,133.23165627,9.7997,9.7908,306.7]
[1672565869494,133.23165627,9.7997,9.791,346.7]
[1672565870228,133.23165627,9.7997,9.7913,40.0]
[1672565870762,133.23165627,9.7997,9.7915,306.7]
[1672565872026,133.23165627,9.7997,9.7916,24.1708]
[1672565872639,133.23165627,9.7997,9.7915,306.7]
[1672565873287,133.23165627,9.7997,9.7916,24.1708]
[1672565873909,133.23165627,9.7997,9.7915,306.7]
[1672565874548,133.23165627,9.7997,9.7916,23.8542]
[1672565874755,56.61165627,9.7997,9.7916,23.8542]
[1672565875172,76.62,9.7996,9.7915,306.7]
[1672565875701,56.61165627,9.7995,9.7915,306.7]
[1672565876016,56.61165627,9.7995,9.7916,23.8542]
[1672565876558,56.61165627,9.7995,9.7915,306.7]
[1672565876763,56.61165627,9.7995,9.7917,306.7]
[1672565877167,56.61165627,9.7995,9.7918,23.544]
[1672565877904,56.61165627,9.7995,9.7916,306.7]
[1672565878445,56.61165627,9.7995,9.7917,23.544]
[1672565879053,56.61165627,9.7995,9.7916,306.7]
[1672565879694,56.61165627,9.7995,9.7917,23.544]
[1672565880018,56.61165627,9.7995,9.7918,306.7]
[1672565880847,56.61165627,9.7995,9.7919,22.9539]
[1672565881492,56.61165627,9.7995,9.7918,306.7]
[1672565882005,56.61165627,9.7995,9.7919,22.9539]
[1672565882735,56.61165627,9.7995,9.7917,306.7]
[1672565883469,56.61165627,9.7995,9.7919,306.7]
[1672565884543,56.61165627,9.7995,9.7918,40.0]
[1672565884734,56.61165627,9.7995,9.7919,331.5631]
[1672565885470,56.61165627,9.7995,9.7919,306.7]
[1672565885681,108.48575151,9.7994,9.7916,113.1808]
[1672565885892,40.0,9.7992,9.7916,113.1808]
[1672565886100,76.62,9.7991,9.7917,24.8631]
[1672565886323,40.0,9.799,9.7917,24.8631]
[1672565886641,40.0,9.7988,9.7917,24.8631]
[1672565886854,40.0,9.7986,9.7916,113.1808]
[1672565887064,40.0,9.7984,9.7916,113.1808]
[1672565887374,40.0,9.7984,9.7894,306.7]
[1672565887375,40.0,9.7982,9.7894,306.7]
[1672565887569,96.63,9.7981,9.7894,306.7]
[1672565887770,40.0,9.798,9.7881,306.7]
[1672565887982,40.0,9.7978,9.7881,306.7]
[1672565888190,40.0,9.7976,9.7881,306.7]
[1672565888421,96.63,9.7975,9.7881,306.7]
[1672565889042,165.11575151,9.7975,9.7883,306.7]
[1672565889264,165.11575151,9.7975,9.7885,306.7]
[1672565889486,165.11575151,9.7975,9.7788,109.5166]
[1672565889487,59.81832293,9.7974,9.7887,306.7]
[1672565889687,20.0,9.7973,9.7889,306.7]
[1672565889885,20.0,9.7973,9.7891,306.7]
[1672565890090,59.81832293,9.7972,9.7891,306.7]
[1672565890303,59.81832293,9.7972,9.7894,40.0]
[1672565890527,59.81832293,9.7972,9.7897,40.0]
[1672565890735,59.81832293,9.7972,9.7899,306.7]
[1672565891044,59.81832293,9.7972,9.7901,306.7]
[1672565891255,59.81832293,9.7972,9.7903,306.7]
[1672565891570,59.81832293,9.7972,9.7905,306.7]
[1672565891783,59.81832293,9.7972,9.7907,306.7]
[1672565891996,59.81832293,9.7972,9.7909,306.7]
[1672565892203,59.81832293,9.7972,9.7911,306.7]
[1672565892413,59.81832293,9.7972,9.7913,306.7]
[1672565892624,59.81832293,9.7972,9.7915,306.7]
[1672565892845,59.81832293,9.7972,9.7917,306.7]
[1672565893039,59.81832293,9.7972,9.7919,306.7]
[1672565893359,59.81832293,9.7972,9.7898,141.3757]
[1672565893360,59.81832293,9.7972,9.7921,306.7]
[1672565894210,59.81832293,9.7972,9.79,306.7]
[1672565894406,59.81832293,9.7972,9.7902,306.7]
[1672565894618,59.81832293,9.7972,9.7904,306.7]
[1672565894841,59.81832293,9.7972,9.7906,306.7]
[1672565895050,59.81832293,9.7972,9.7908,306.7]
[1672565895258,59.81832293,9.7972,9.791,306.7]
[1672565895576,136.41394819,9.8002,9.7912,306.7]
[1672565895793,58.6049896,9.8001,9.7914,306.7]
[1672565896004,58.6049896,9.8001,9.7916,306.7]
[1672565896186,68.48575151,9.8,9.7918,306.7]
[1672565896518,58.6049896,9.7999,9.792,306.7]
[1672565896716,58.6049896,9.7999,9.7922,306.7]
[1672565897571,58.6049896,9.7999,9.7923,24.1388]
[1672565897793,58.6049896,9.7999,9.7923,330.8388]
[1672565898510,58.6049896,9.7999,9.7923,306.7]
[1672565898837,58.6049896,9.7999,9.7919,306.7]
[1672565899149,58.6049896,9.7999,9.7921,306.7]
[1672565899469,58.6049896,9.7999,9.7923,306.7]
[1672565900299,58.6049896,9.7999,9.7924,22.769]
[1672565900935,58.6049896,9.7999,9.7924,306.7]
[1672565901139,127.09074111,9.7999,9.7924,306.7]
[1672565901464,58.6049896,9.7998,9.7924,306.7]
[1672565901694,58.6049896,9.7998,9.7925,22.769]
[1672565901884,68.48575151,9.7997,9.7925,329.469]
[1672565902322,58.6049896,9.7996,9.7925,306.7]
[1672565902730,68.48575151,9.7995,9.7925,306.7]
[1672565902942,68.48575151,9.7995,9.7926,24.2411]
[1672565903162,58.6049896,9.7994,9.7926,24.2411]
[1672565903582,58.6049896,9.7994,9.7924,306.7]
[1672565903583,68.48575151,9.7993,9.7924,306.7]
[1672565904108,58.6049896,9.7992,9.7922,306.7]
[1672565904424,68.48575151,9.7991,9.7924,306.7]
[1672565904831,58.6049896,9.799,9.7924,306.7]
[1672565905261,58.6049896,9.799,9.7922,306.7]
[1672565905475,58.6049896,9.799,9.7925,40.0]
[1672565905682,58.6049896,9.799,9.7926,76.67]
[1672565906317,58.6049896,9.799,9.7927,306.7]
[1672565906627,58.6049896,9.799,9.7929,306.7]
[1672565907454,58.6049896,9.799,9.7927,306.7]
[1672565907676,58.6049896,9.799,9.7928,76.67]
[1672565907886,68.48575151,9.7989,9.793,40.0]
[1672565908205,153.01139289,9.8018,9.7933,40.0]
[1672565908395,153.01139289,9.8018,9.7935,306.7]
[1672565908609,153.01139289,9.8018,9.7937,306.7]
[1672565908817,153.01139289,9.8018,9.794,40.0]
[1672565909042,153.01139289,9.8018,9.7943,40.0]
[1672565909257,153.01139289,9.8018,9.7945,306.7]
[1672565909464,153.01139289,9.8017,9.7947,306.7]
[1672565909782,153.01139289,9.8017,9.7949,306.7]
[1672565910095,153.01139289,9.8017,9.7951,306.7]
[1672565910309,153.01139289,9.8017,9.7953,306.7]
[1672565910502,153.01139289,9.8017,9.7955,306.7]
[1672565910831,153.01139289,9.8017,9.7956,76.65]
[1672565911359,153.01139289,9.8015,9.7956,76.65]
[1672565911759,153.01139289,9.8015,9.7946,306.7]
[1672565911988,153.01139289,9.8015,9.7948,306.7]
[1672565912186,153.01139289,9.8015,9.795,306.7]
[1672565912400,153.01139289,9.8015,9.7952,306.7]
[1672565912617,153.01139289,9.8015,9.7955,40.0]
[1672565912929,153.01139289,9.8017,9.7958,40.0]
[1672565913139,153.01139289,9.8017,9.7961,40.0]
[1672565913344,153.01139289,9.8017,9.7963,306.7]
[1672565913541,153.01139289,9.8017,9.7965,306.7]
[1672565913753,153.01139289,9.8017,9.7966,76.64]
[1672565914817,153.01139289,9.8017,9.7962,76.64]
[1672565915140,153.01139289,9.8017,9.7963,306.7]
[1672565915456,153.01139289,9.8016,9.7963,306.7]
[1672565917543,153.01139289,9.8016,9.7965,306.7]
[1672565917755,153.01139289,9.8016,9.7966,76.64]
[1672565918819,153.01139289,9.8016,9.7963,306.7]
[1672565919759,153.01139289,9.8016,9.7961,40.0]
[1672565919970,153.01139289,9.8016,9.7962,306.7]
[1672565921015,153.01139289,9.8016,9.7963,306.7]
[1672565921870,24.826,9.8029,9.7964,40.0]
[1672565922081,20.0,9.8028,9.7967,40.0]
[1672565922395,20.0,9.8028,9.797,40.0]
[1672565922594,20.0,9.8049,9.7971,306.7]
[1672565922919,20.0,9.8049,9.7972,40.0]
[1672565923536,45.89939627,9.8048,9.7972,40.0]
[1672565923745,20.0,9.8047,9.7972,40.0]
[1672565924185,45.89939627,9.8046,9.7972,40.0]
[1672565924387,20.0,9.8045,9.7972,40.0]
[1672565924707,45.89939627,9.8044,9.7972,40.0]
[1672565924903,20.0,9.8043,9.7972,40.0]
[1672565925324,45.89939627,9.8042,9.7972,40.0]
[1672565925536,20.0,9.8041,9.7972,40.0]
[1672565925955,45.89939627,9.804,9.7972,40.0]
[1672565926171,20.0,9.8039,9.7972,40.0]
[1672565926498,45.89939627,9.8038,9.7972,40.0]
[1672565926711,20.0,9.8037,9.7972,40.0]
[1672565927114,45.89939627,9.8036,9.7972,40.0]
[1672565927325,20.0,9.8035,9.7972,40.0]
[1672565927740,45.89939627,9.8034,9.7972,40.0]
[1672565928276,20.0,9.8033,9.7972,40.0]
[1672565928604,45.89939627,9.8032,9.7972,40.0]
[1672565928914,20.0,9.8031,9.7972,40.0]
[1672565929117,40.0,9.8029,9.7827,40.0]
[1672565929327,96.59,9.8028,9.7863,40.0]
[1672565929533,40.0,9.8027,9.7863,40.0]
[1672565929741,40.0,9.8025,9.7882,40.0]
[1672565929950,40.0,9.8023,9.7883,76.71]
[1672565930166,76.6,9.8022,9.7884,306.7]
[1672565930487,100.44388395,9.8021,9.7886,306.7]
[1672565930701,40.0,9.8019,9.7888,306.7]
[1672565930897,76.6,9.8018,9.789,346.7]
[1672565931102,40.0,9.8017,9.7893,40.0]
[1672565931313,40.0,9.8015,9.7895,306.7]
[1672565931520,76.6,9.8014,9.7935,306.7]
[1672565931727,76.6,9.8015,9.7935,306.7]
[1672565932051,60.44388395,9.8013,9.7935,306.7]
[1672565932261,137.04388395,9.8013,9.7935,306.7]
[1672565932474,137.04388395,9.8013,9.7935,415.0874]
[1672565932797,60.44388395,9.8012,9.7935,415.0874]
[1672565933522,68.75335681,9.8011,9.7935,415.0874]
[1672565933856,60.44388395,9.801,9.7935,415.0874]
[1672565934259,40.0,9.8008,9.7935,415.0874]
[1672565934472,68.75335681,9.8009,9.7935,415.0874]
[1672565934684,129.19724076,9.8007,9.7935,415.0874]
[1672565935107,129.19724076,9.8006,9.7935,415.0874]
[1672565935423,129.19724076,9.8005,9.7935,415.0874]
[1672565935833,129.19724076,9.8004,9.7935,415.0874]
[1672565936271,129.19724076,9.8003,9.7935,415.0874]
[1672565936675,129.19724076,9.8002,9.7935,415.0874]
[1672565936886,40.0,9.8001,9.7935,108.3874]
[1672565937105,173.70390743,9.8001,9.7935,108.3874]
[1672565937331,40.0,9.7999,9.7935,108.3874]
[1672565937536,40.0,9.7997,9.7935,108.3874]
[1672565937748,76.62,9.7996,9.7935,108.3874]
[1672565937954,40.0,9.7995,9.7935,108.3874]
[1672565938157,40.0,9.7993,9.7935,108.3874]
[1672565938383,40.0,9.7991,9.7935,108.3874]
[1672565938594,76.62,9.799,9.7935,108.3874]
[1672565938799,40.0,9.7989,9.7935,108.3874]
[1672565939171,60.44388395,9.7988,9.7935,108.3874]
[1672565939348,116.62,9.7987,9.7935,108.3874]
[1672565939548,40.0,9.7987,9.7935,108.3874]
[1672565939761,40.0,9.7985,9.7935,108.3874]
[1672565940179,60.44388395,9.7984,9.7935,108.3874]
[1672565940396,40.0,9.7983,9.7935,108.3874]
[1672565940742,60.44388395,9.7982,9.7935,108.3874]
[1672565940928,40.0,9.7981,9.7935,108.3874]
[1672565941332,40.0,9.7979,9.7935,108.3874]
[1672565941550,60.44388395,9.798,9.7935,108.3874]
[1672565941759,60.44388395,9.7978,9.7935,108.3874]
[1672565942487,73.26002348,9.7977,9.7935,108.3874]
[1672565942822,60.44388395,9.7976,9.7935,108.3874]
[1672565943229,73.26002348,9.7975,9.7935,108.3874]
[1672565943659,60.44388395,9.7974,9.7935,108.3874]
[1672565946476,73.26002348,9.7975,9.7935,108.3874]
[1672565946679,60.44388395,9.7974,9.7935,108.3874]
[1672565947116,73.26002348,9.7973,9.7935,108.3874]
[1672565947525,133.70390743,9.7973,9.7935,108.3874]
[1672565950148,40.0,9.7972,9.7935,108.3874]
[1672565950473,60.44388395,9.7971,9.7935,108.3874]
[1672565952977,73.11009014,9.797,9.7935,108.3874]
[1672565953509,60.44388395,9.7969,9.7935,108.3874]
[1672565957595,40.0,9.7968,9.7935,108.3874]
[1672565957817,133.55397409,9.7969,9.7935,108.3874]
[1672565958022,60.44388395,9.7967,9.7935,108.3874]
[1672565958877,60.44388395,9.7967,9.7934,24.3395]
[1672565969077,113.11009014,9.7966,9.7934,24.3395]
[1672565969490,40.0,9.7964,9.7934,24.3395]
[1672565969931,219.04809607,9.7963,9.7934,24.3395]
[1672565970358,219.04809607,9.7962,9.7934,24.3395]
[1672565970750,219.04809607,9.7961,9.7934,24.3395]
[1672565971192,140.57397409,9.796,9.7934,24.3395]
[1672565971594,140.57397409,9.7959,9.7934,24.3395]
[1672565972014,140.57397409,9.7958,9.7934,24.3395]
[1672565972333,140.57397409,9.7957,9.7909,113.3401]
[1672565972755,140.57397409,9.7956,9.7909,113.3401]
[1672565973298,144.38730743,9.7955,9.7909,113.3401]
[1672565973710,144.38730743,9.7954,9.7909,113.3401]
[1672565974024,144.38730743,9.7953,9.7909,113.3401]
[1672565974451,144.38730743,9.7952,9.7909,113.3401]
[1672565974760,144.38730743,9.7951,9.7909,113.3401]
[1672565975166,144.38730743,9.795,9.7909,113.3401]
[1672565975596,144.38730743,9.7949,9.7909,113.3401]
[1672565976013,144.38730743,9.7948,9.7909,113.3401]
[1672565976443,144.38730743,9.7947,9.7909,113.3401]
[1672565976871,144.38730743,9.7946,9.7909,113.3401]
[1672565977401,144.38730743,9.7945,9.7909,113.3401]
[1672565977808,144.38730743,9.7944,9.7909,113.3401]
[1672565978336,144.38730743,9.7943,9.7909,113.3401]
[1672565978762,144.38730743,9.7942,9.7909,113.3401]
[1672565979164,78.47412198,9.7961,9.7909,113.3401]
[1672565979165,144.38730743,9.7941,9.7909,113.3401]
[1672565979392,144.38730743,9.7941,9.7889,306.7]
[1672565979393,144.38730743,9.7941,9.789,47.059]
[1672565979588,144.38730743,9.794,9.789,47.059]
[1672565979923,144.38730743,9.7939,9.789,47.059]
[1672565980135,144.38730743,9.7939,9.789,24.2779]
[1672565980320,63.30388395,9.7938,9.789,24.2779]
[1672565980866,81.08342348,9.7937,9.789,24.2779]
[1672565981271,63.30388395,9.7936,9.789,24.2779]
[1672565982114,144.38210743,9.7936,9.789,24.2779]
[1672565982543,63.30388395,9.7935,9.789,24.2779]
[1672565985211,63.30388395,9.7935,9.7892,306.7]
[1672565986163,63.30388395,9.7935,9.789,24.2779]
[1672565986345,63.30388395,9.7935,9.7891,306.7]
[1672565987409,63.30388395,9.7935,9.7892,306.7]
[1672565988877,63.30388395,9.7935,9.789,24.2779]
[1672565989089,63.30388395,9.7935,9.7891,306.7]
[1672565990135,63.30388395,9.7935,9.789,24.2779]
[1672565995513,63.30388395,9.7935,9.7875,306.7]
[1672565995514,81.07822348,9.7934,9.7875,306.7]
[1672565995709,40.0,9.7932,9.7875,306.7]
[1672565996025,101.07822348,9.7931,9.7875,306.7]
[1672565996336,81.07822348,9.793,9.7834,306.7]
[1672565996568,20.0,9.7929,9.7836,306.7]
[1672565996852,83.29348395,9.7929,9.7838,306.7]
[1672565997080,144.37170743,9.7928,9.784,306.7]
[1672565997264,144.37170743,9.7928,9.7842,306.7]
[1672565997265,20.0,9.7927,9.7842,306.7]
[1672565997485,164.37170743,9.7927,9.7844,306.7]
[1672565997693,144.37170743,9.7926,9.7846,306.7]
[1672565998046,164.37170743,9.7925,9.7848,306.7]
[1672565998245,164.37170743,9.7925,9.785,306.7]
[1672565998452,164.37170743,9.7925,9.7852,306.7]
[1672565998453,144.37170743,9.7924,9.7852,306.7]
[1672565998830,83.29348395,9.7923,9.7854,306.7]
[1672565998956,144.37170743,9.7923,9.7856,306.7]
[1672565999198,164.37170743,9.7922,9.7858,306.7]
[1672565999384,164.37170743,9.7922,9.786,306.7]
[1672565999598,144.37170743,9.7921,9.7862,306.7]
[1672565999807,144.37170743,9.7921,9.7864,306.7]
[1672566000017,144.37170743,9.792,9.7866,306.7]
[1672566000427,144.37170743,9.7919,9.7866,306.7]
[1672566000862,144.37170743,9.7918,9.7866,306.7]
[1672566001073,144.37170743,9.7918,9.7843,76.74]